[Event "Rapid Shavuot-A 2023"]
[Site "Ramat Gan"]
[Date "2023.05.25"]
[Round "6.8"]
[White "Andreev, Dmitri"]
[Black "Kochavi, Ori"]
[Result "0-1"]
[ECO "A64"]
[WhiteElo "2166"]
[BlackElo "2423"]
[Annotator "TA"]
[PlyCount "72"]
[EventDate "2023.05.19"]
[EventType "swiss"]
[EventCountry "ISR"]
[SourceTitle "playchess.com"]
[Source "ChessBase"]
[SourceQuality "1"]
[TimeControl "900+5"]

{[%evp 27,72,14,10,11,73,74,73,70,83,68,73,67,108,4,16,20,11,0,10,0,0,-58,-48,-56,-56,-77,0,0,0,0,0,0,0,-25,-25,-19,0,-68,54,43,44,-262,0,-1098,0,-5310,-5297]} 1. d4 {[%emt 0:00:03]} Nf6 {[%emt 0:00:00]} 2. c4 {[%emt 0:00:03]} e6 {[%emt 0:00:01]} 3. g3 {[%emt 0:00:03]} c5 {[%emt 0:00:01]} 4. d5 {[%emt 0:00:03]} exd5 {[%emt 0:00:02]} 5. cxd5 {[%emt 0:00:02]} d6 {[%emt 0:00:02]} 6. Nc3 {[%emt 0:00:05]} g6 {[%emt 0:00:00]} 7. Bg2 {[%emt 0:00:04]} Bg7 {[%emt 0:00:02]} 8. Nf3 {[%emt 0:00:04]} O-O {[%emt 0:00:02]} 9. O-O {[%emt 0:00:04]} Re8 {[%emt 0:00:01]} 10. Nd2 {[%emt 0:00:40]} a6 {[%emt 0:00:11]} 11. a4 {[%emt 0:00:08]} Nbd7 {[%emt 0:00:01]} 12. Nc4 {[%emt 0:00:23]} Ne5 {[%emt 0:00:02]} 13. Na3 {[%emt 0:00:37]} Rb8 {[%emt 0:00:48]} 14. h3 {[%emt 0:01:28]} Nh5 {[%emt 0:00:26]} 15. e4 {[%emt 0:01:26] A64: Modern Benoni: Fianchetto Variation: 9...Nbd7 10 Nd2 a6 11 a4 Re8.} b5 {[%emt 0:01:26]} 16. axb5 $16 {[%emt 0:00:34]} axb5 {[%emt 0:00:01]} 17. Naxb5 {[%emt 0:00:15] White is better.} Qb6 {[%emt 0:00:41] [#]} 18. g4 $146 {[%emt 0:01:13]} ({Predecessor:} 18. Kh2 Bd7 19. Na3 Qb4 20. Nc2 Qb7 21. Ne3 Bb5 22. Nxb5 Qxb5 23. Ra3 c4 24. Qa4 {½-½ Gritsenko,A (2409)-Bocharov,D (2611) Izmailov Memorial op 16th 2012 (7)}) 18... Nf6 {[%emt 0:00:03] [#]} 19. f4 $1 {[%emt 0:01:05]} Ned7 {[%emt 0:05:01] [#]} 20. Nxd6 {[%emt 0:01:29]} Qxd6 $11 {[%emt 0:00:05]} (20... c4+ 21. Kh1 Qxd6 22. e5 $16) 21. e5 {[%emt 0:00:09]} Qb6 {[%emt 0:00:10]} 22. exf6 {[%emt 0:01:25]} (22. Kh1 {seems wilder.} Ba6 23. Re1 Bc4 24. Ra3) 22... Bxf6 {[%emt 0:00:07]} 23. Kh1 {[%emt 0:01:22]} Bd4 {[%emt 0:00:16]} 24. f5 {[%emt 0:00:51]} (24. g5 $11) 24... Ba6 $15 {[%emt 0:00:17]} 25. fxg6 {[%emt 0:00:54]} hxg6 {[%emt 0:00:14]} 26. Re1 {[%emt 0:00:36]} Nf6 {[%emt 0:00:09] Black is more active.} (26... Ne5 $17 {Threatens to win with ...Nd3.} 27. Bf4 Nd3 28. Rxe8+ Rxe8) 27. Bf4 $11 {[%emt 0:00:29]} Rxe1+ {[%emt 0:02:27]} 28. Qxe1 {[%emt 0:00:01]} Re8 {[%emt 0:00:05]} 29. Qd2 {[%emt 0:00:18]} Bb7 {[%emt 0:00:44]} 30. Rf1 {[%emt 0:00:25]} Qb3 {[%emt 0:00:46][%cal Rf6d5]} 31. d6 {[%emt 0:00:30]} Bxg2+ {[%emt 0:00:02]} (31... Qc4 $5 {[%cal Rc4f1]} 32. Rc1 Bxg2+ 33. Kxg2 Nd5 $15) 32. Kxg2 {[%emt 0:00:15]} (32. Qxg2 $11 Bxc3 33. bxc3) 32... Bxc3 {[%emt 0:01:29]} (32... Nd5 $1 $15 33. Kh1 Qc4) 33. Qxc3 $14 {[%emt 0:00:12]} Re2+ {[%emt 0:00:01]} 34. Kf3 $2 {[%emt 0:00:14][%mdl 8192]} (34. Kg1 $14 {stays ahead.} Qe6 35. Qf3 (35. Qxc5 $2 Qe4 $19)) 34... Qb5 $2 {[%emt 0:00:28]} ({Much less strong is} 34... Qxb2 35. Qxb2 (35. Qxc5 $2 {loses.} Rg2 $19) 35... Rxb2 36. Ra1 Rb3+ 37. Ke2 $16) (34... Qe6 $19 {( -> ...Qe4+)} 35. Qd3 (35. Qxf6 $2 Qxf6 36. Kxe2 Qxb2+ 37. Kf3 Qb3+ 38. Kg2 Qd5+ 39. Rf3 c4 $19) 35... Rxb2) 35. Be5 $2 {[%emt 0:00:05][%mdl 8192]} (35. d7 $11 Nxd7 36. Rf2 Rxf2+ 37. Kxf2) 35... Nd5 $2 {[%emt 0:00:03]} (35... Ne4 $19 36. Ra1 f5) 36. Qa3 {[%emt 0:00:12][%mdl 8192]} (36. Ra1 $11 Qb7 37. Kxe2 (37. Qxc5 $2 {too greedy.} Nc3+ 38. Kf4 g5+ {[%mdl 64] Decoy} 39. Kxg5 Ne4+ 40. Kh4 Nxc5 $19 {[%mdl 64] Discovered Attack}) 37... Nxc3+ 38. Bxc3) 36... Rxe5 {[%emt 0:00:29] Weighted Error Value: White=0.76/Black=0.61} 0-1

[Event "Rapid Shavuot-A 2023"]
[Site "Ramat Gan"]
[Date "2023.05.25"]
[Round "6.9"]
[White "Katz, Kiril"]
[Black "Iliaguev, Nisim"]
[Result "1-0"]
[ECO "B12"]
[WhiteElo "2016"]
[BlackElo "2402"]
[Annotator "TA"]
[PlyCount "81"]
[EventDate "2023.05.19"]
[EventType "swiss"]
[EventCountry "ISR"]
[SourceTitle "playchess.com"]
[Source "ChessBase"]
[SourceQuality "1"]
[TimeControl "900+5"]

{[%evp 9,81,-19,-24,-61,-34,-41,6,12,9,13,41,20,37,43,47,52,64,37,66,54,65,68,80,76,95,92,91,73,70,60,62,22,55,16,52,36,36,-27,-27,-27,-27,-27,-27,-27,0,0,0,0,0,0,0,0,0,0,0,0,0,0,90,90,90,90,90,90,561,561,29980,29981,29984,29985,29984,29982,29987,29988]} 1. e4 {[%emt 0:00:01]} c6 {[%emt 0:00:05]} 2. d4 {[%emt 0:00:01]} d5 {[%emt 0:00:01]} 3. e5 {[%emt 0:00:01]} Bf5 {[%emt 0:00:02]} 4. h4 {[%emt 0:00:00]} h5 {[%emt 0:00:00]} 5. Bg5 {[%emt 0:00:01]} Qb6 {[%emt 0:00:06]} 6. Bd3 {[%emt 0:00:01] B12: Caro-Kann: Advance Variation.} Bxd3 {[%emt 0:00:06]} 7. Qxd3 {[%emt 0:00:01][%cal Oe5e6]} e6 {[%emt 0:00:04]} (7... Qxb2 $15 8. Qb3 Qxb3 9. axb3 e6) 8. Nd2 $11 {[%emt 0:00:03] Active counter play! The position is equal.} Ne7 {[%emt 0:00:04]} 9. Ne2 {[%emt 0:00:35]} Nf5 {[%emt 0:00:07]} 10. c4 {[%emt 0:00:24]} Nd7 {[%emt 0:00:24]} 11. O-O {[%emt 0:00:18]} Be7 {[%emt 0:00:08]} 12. Bxe7 {[%emt 0:00:27]} Nxe7 {[%emt 0:00:04] [#]} 13. Ng3 $146 {[%emt 0:00:12]} ({Predecessor:} 13. b4 Nf5 14. g3 Qd8 15. cxd5 cxd5 16. Nf4 g6 17. Rfc1 Rc8 18. Nf1 Rc4 19. Rxc4 dxc4 20. Qxc4 {1-0 Aravindh,C (2607)-Murzin,V (2554) New Delhi op 20th 2023 (9)}) 13... g6 {[%emt 0:00:14]} 14. c5 {[%emt 0:00:14]} Qd8 {[%emt 0:00:11]} 15. b4 {[%emt 0:00:01]} O-O {[%emt 0:00:33]} 16. Nf3 {[%emt 0:00:13]} Nf5 {[%emt 0:01:02]} 17. Nxf5 {[%emt 0:00:04]} exf5 {[%emt 0:00:01]} 18. Ng5 {[%emt 0:00:13]} Re8 {[%emt 0:00:06]} 19. f4 {[%emt 0:00:39]} b6 {[%emt 0:00:44]} 20. Rae1 {[%emt 0:00:25]} Nf8 {[%emt 0:00:13]} 21. Re2 {[%emt 0:00:48]} Qd7 {[%emt 0:00:22]} 22. Rfe1 {[%emt 0:00:17]} bxc5 {[%emt 0:01:17]} 23. dxc5 {[%emt 0:00:17]} ({Better is} 23. bxc5 $14 Rab8 24. Rb1) 23... a5 {[%emt 0:00:08]} 24. a3 {[%emt 0:00:51]} axb4 {[%emt 0:00:07]} 25. axb4 {[%emt 0:00:01]} Ne6 {[%emt 0:00:53]} 26. Nxe6 {[%emt 0:00:08]} Rxe6 {[%emt 0:00:02]} 27. Rb1 {[%emt 0:00:21]} Qe7 {[%emt 0:00:18]} 28. g3 {[%emt 0:00:08]} Qa7 {[%emt 0:00:05]} 29. Kg2 {[%emt 0:00:31]} Re7 {[%emt 0:00:16]} 30. Rc2 {[%emt 0:00:31]} Rb8 {[%emt 0:00:54]} 31. b5 {[%emt 0:00:14]} cxb5 {[%emt 0:00:34]} 32. Rxb5 {[%emt 0:00:02]} Rxb5 33. Qxb5 {[%emt 0:00:01][%mdl 4096] Endgame KQR-KQR} Kg7 {[%emt 0:01:09] [#]} (33... Rc7 $11 {remains equal.}) 34. c6 $1 $16 {[%emt 0:00:28]} Qd4 {[%emt 0:00:36] Hoping for ...Qe4+.} 35. Qb2 $36 {[%emt 0:00:11][%mdl 2048] White is really pushing.} Qe4+ {[%emt 0:04:48]} 36. Kh2 {[%emt 0:00:01]} Rc7 $2 {[%emt 0:00:01][%mdl 8192] Black cannot hold the game after this.} (36... Re8 $16 {is more resistant.}) 37. Re2 $18 {[%emt 0:00:16]} Rxc6 {[%emt 0:02:01][%cal Oc6b6]} 38. Rxe4 {[%emt 0:00:13] White mates.} dxe4 {[%emt 0:00:01]} 39. e6+ {[%emt 0:00:01][%cal Be5e6,Be6e7][%mdl 32]} Kf8 {[%emt 0:00:04]} 40. Qb8+ {[%emt 0:00:01]} Kg7 {[%emt 0:00:09]} 41. e7 {[%emt 0:00:09] Weighted Error Value: White=0.09 (flawless) /Black=0.39} 1-0

[Event "Rapid Shavuot-A 2023"]
[Site "Ramat Gan"]
[Date "2023.05.25"]
[Round "6.10"]
[White "Duchan, Yoav"]
[Black "Zemach, Nadav"]
[Result "0-1"]
[ECO "C56"]
[WhiteElo "1906"]
[BlackElo "2383"]
[Annotator "TA"]
[PlyCount "70"]
[EventDate "2023.05.19"]
[EventType "swiss"]
[EventCountry "ISR"]
[SourceTitle "playchess.com"]
[Source "ChessBase"]
[SourceQuality "1"]
[TimeControl "900+5"]

{[%evp 9,70,1,-2,-86,-92,-256,-112,-122,-116,-115,-104,-116,-110,-129,-102,-115,-80,-123,-133,-133,-122,-132,-122,-110,-79,-117,-104,-110,-105,-112,-103,-143,-134,-146,-146,-146,-145,-150,-152,-169,-169,-173,-144,-175,-179,-333,-354,-563,-542,-729,-717,-687,-655,-987,-937,-29983,-29984,-29984,-29985,-29986,-29987,-29996,-29993]} 1. e4 {[%emt 0:00:01]} e5 {[%emt 0:15:10]} 2. Bc4 Nf6 {[%emt 0:00:00]} 3. d4 {[%emt 0:00:01]} exd4 {[%emt 0:00:00]} 4. Nf3 {[%emt 0:00:01]} Nc6 {[%emt 0:00:00]} 5. e5 {[%emt 0:00:01]} Ne4 {[%emt 0:00:00]} 6. Nxd4 {[%emt 0:00:04] C56: Two Knights: 4 d4 exd4 5 0-0 Nxe4.} (6. O-O $11) 6... Nxe5 $17 {[%emt 0:00:00]} 7. Bd3 {[%emt 0:00:43] [#]} (7. Bd5 $17 {was worth a try.} Nf6 8. Nc3) 7... Nxd3+ {[%emt 0:00:00]} (7... Nxf2 $1 $19 8. Kxf2 Qh4+ 9. Kf1 Qxd4) 8. Qxd3 {[%emt 0:00:01] [#] Black is better.} d5 {[%emt 0:00:00]} 9. O-O {[%emt 0:00:05]} Be7 {[%emt 0:00:00] [#]} 10. Re1 $146 {[%emt 0:00:22]} ({Predecessor:} 10. f3 Nf6 11. Bg5 O-O 12. Nc3 c6 13. Rfe1 Re8 14. Re2 Bd7 15. Rae1 h6 16. Bh4 {0-1 Gislason,J (1319)-Acevedo Mendez,L (1886) Reykjavik op 2016 (2)}) 10... O-O {[%emt 0:00:00]} 11. Nd2 {[%emt 0:00:05]} Nxd2 12. Bxd2 {[%emt 0:00:01]} Bf6 {[%emt 0:00:00]} 13. Bc3 {[%emt 0:00:22]} c5 {[%emt 0:00:00]} 14. Nf5 {[%emt 0:01:12]} Bxf5 {[%emt 0:00:00]} 15. Qxf5 {[%emt 0:00:07]} Bxc3 {[%emt 0:00:00]} 16. bxc3 {[%emt 0:00:01]} Qd6 {[%emt 0:00:00]} 17. Rad1 {[%emt 0:00:32]} Rfe8 {[%emt 0:00:00]} 18. g3 {[%emt 0:00:28]} Rxe1+ {[%emt 0:00:00]} 19. Rxe1 {[%emt 0:00:01][%mdl 4096] Endgame KQR-KQR} Rd8 {[%emt 0:00:00]} 20. Rd1 {[%emt 0:00:23]} g6 {[%emt 0:00:00]} 21. Qf3 {[%emt 0:00:06]} b6 {[%emt 0:00:00]} 22. h4 {[%emt 0:00:07]} h5 {[%emt 0:00:00]} 23. Re1 {[%emt 0:00:10]} Kg7 {[%emt 0:00:00]} 24. Re2 {[%emt 0:01:48]} Qf6 {[%emt 0:00:00]} 25. Qd3 {[%emt 0:00:05]} a5 {[%emt 0:00:00]} 26. Qb5 {[%emt 0:00:24]} Rd6 {[%emt 0:00:00]} (26... Qxc3 27. Qxb6 Rf8 28. Qb3 Qxb3 29. axb3 $17) 27. Re8 $2 {[%emt 0:00:49]} (27. Re3) 27... Qxc3 $19 {[%emt 0:00:00]} 28. Rb8 {[%emt 0:01:04]} (28. Qb3 $142 Qf6 29. Kg2) 28... Qe1+ {[%emt 0:00:00]} ({Not} 28... Qxc2 29. Qe8 Kf6 30. Rb7 Qc1+ 31. Kg2 $18) 29. Kg2 {[%emt 0:00:01]} Rf6 {[%emt 0:00:00]} 30. Qf1 {[%emt 0:01:03]} Qe4+ {[%emt 0:00:00]} 31. Kh3 {[%emt 0:00:08]} Qxc2 {[%emt 0:00:00]} 32. Qa1 {[%emt 0:00:07]} Qf5+ {[%emt 0:00:00] Black mates.} 33. Kh2 {[%emt 0:00:06]} Qxf2+ {[%emt 0:00:00]} 34. Kh3 {[%emt 0:00:00]} d4 {[%emt 0:00:00]} 35. Rxb6 {[%emt 0:00:03]} Rxb6 {[%emt 0:00:00] Weighted Error Value: White=0.80/Black=0.10 (very precise)} 0-1

[Event "Rapid Shavuot-A 2023"]
[Site "Ramat Gan"]
[Date "2023.05.25"]
[Round "6.11"]
[White "Noy, Eyal"]
[Black "Poleg, Dan"]
[Result "1-0"]
[ECO "E04"]
[WhiteElo "2141"]
[BlackElo "2193"]
[Annotator "NA RC"]
[PlyCount "86"]
[EventDate "2023.05.19"]
[EventType "swiss"]
[EventCountry "ISR"]
[SourceTitle "playchess.com"]
[Source "ChessBase"]
[SourceQuality "1"]
[TimeControl "900+5"]

1. d4 {[%emt 0:00:03]} Nf6 {[%emt 0:00:02]} 2. c4 {[%emt 0:00:01]} e6 {[%emt 0:00:01]} 3. Nf3 {[%emt 0:00:01]} d5 {[%emt 0:00:04]} 4. g3 {[%emt 0:00:02]} dxc4 {[%emt 0:00:02]} 5. Bg2 {[%emt 0:00:03]} a6 {[%emt 0:00:10]} 6. Ne5 {[%emt 0:00:15]} c5 {[%emt 0:00:17]} 7. Nxc4 {[%emt 0:01:59]} cxd4 {[%emt 0:00:17]} 8. e3 {[%emt 0:00:18]} Bc5 {[%emt 0:01:00]} 9. exd4 {[%emt 0:00:10]} Bxd4 {[%emt 0:00:02]} 10. Bf4 {[%emt 0:00:58]} e5 {[%emt 0:01:14]} 11. Nxe5 {[%emt 0:00:06]} O-O {[%emt 0:01:04]} 12. Nc4 {[%emt 0:02:08]} Re8+ {[%emt 0:00:08]} 13. Be3 {[%emt 0:00:05]} Ng4 {[%emt 0:02:23]} 14. O-O {[%emt 0:00:03]} Nxe3 {[%emt 0:00:07]} 15. fxe3 {[%emt 0:00:08]} Bf6 {[%emt 0:00:22]} 16. Qxd8 {[%emt 0:01:33]} Rxd8 {[%emt 0:00:01]} 17. Nc3 {[%emt 0:00:43]} Nc6 {[%emt 0:00:08]} 18. Nd5 {[%emt 0:00:16]} Bg5 {[%emt 0:00:49]} 19. Ndb6 {[%emt 0:02:05]} Rb8 {[%emt 0:00:03]} 20. Rad1 {[%emt 0:00:04]} Be6 {[%emt 0:00:06]} 21. Bd5 {[%emt 0:00:56]} Bxd5 {[%emt 0:00:39]} 22. Rxd5 {[%emt 0:00:01]} Rxd5 {[%emt 0:00:03]} 23. Nxd5 {[%emt 0:00:03]} b5 {[%emt 0:00:08]} 24. Ncb6 {[%emt 0:00:39]} Rxb6 {[%emt 0:00:37]} 25. Nxb6 {[%emt 0:00:02]} Bxe3+ {[%emt 0:00:01]} 26. Kg2 {[%emt 0:00:01]} Bxb6 {[%emt 0:00:02]} 27. Rc1 {[%emt 0:00:25]} Nd8 {[%emt 0:00:03]} 28. Rc8 {[%emt 0:00:23]} Kf8 {[%emt 0:00:48]} 29. Rb8 {[%emt 0:00:10]} Bc7 {[%emt 0:00:16]} 30. Rc8 {[%emt 0:00:06]} Ba5 {[%emt 0:00:07]} 31. Ra8 {[%emt 0:00:15]} Ke7 {[%emt 0:00:40]} 32. Rxa6 {[%emt 0:00:08]} Bc7 {[%emt 0:00:02]} 33. Kf3 {[%emt 0:00:15]} Ne6 {[%emt 0:00:15]} 34. Ra8 {[%emt 0:00:23]} f5 {[%emt 0:00:19]} 35. b3 {[%emt 0:00:51]} g5 {[%emt 0:00:05]} 36. a4 {[%emt 0:00:26]} b4 {[%emt 0:00:20]} 37. Ke3 {[%emt 0:00:38]} f4+ {[%emt 0:00:07]} 38. gxf4 {[%emt 0:00:52]} Bxf4+ {[%emt 0:00:35]} 39. Kd3 {[%emt 0:00:18]} Bxh2 {[%emt 0:00:08]} 40. a5 {[%emt 0:00:06]} Kd7 {[%emt 0:00:22]} 41. a6 {[%emt 0:00:16]} Kc7 {[%emt 0:00:54]} 42. Rh8 {[%emt 0:00:14]} Bd6 {[%emt 0:02:33]} 43. a7 {[%emt 0:00:04]} Bh2 {[%emt 0:01:16]} 1-0

[Event "Rapid Shavuot-A 2023"]
[Site "Ramat Gan"]
[Date "2023.05.25"]
[Round "6.12"]
[White "Dezent, Eyal"]
[Black "Mordechai, Hanan"]
[Result "1-0"]
[ECO "D02"]
[WhiteElo "1773"]
[BlackElo "2366"]
[Annotator "TA"]
[PlyCount "101"]
[EventDate "2023.05.19"]
[EventType "swiss"]
[EventCountry "ISR"]
[SourceTitle "playchess.com"]
[Source "ChessBase"]
[SourceQuality "1"]
[TimeControl "900+5"]

{[%evp 14,100,4,-8,16,13,43,33,22,-72,-6,-90,-90,-119,-103,-133,26,8,24,22,57,52,57,4,12,0,0,0,0,-48,-42,-39,-44,-88,-93,-117,0,0,0,0,0,0,0,0,8,-31,-23,-89,-89,-86,-84,-95,-76,-78,-62,-218,-53,-53,-50,-54,-54,-52,14,14,14,14,14,14,14,21,16,0,0,0,53,53,53,53,541,534,550,464,363,167,29991,29991,29991,29992,29992]} 1. d4 {[%emt 0:00:01]} Nf6 {[%emt 0:00:05]} 2. Bf4 {[%emt 0:00:02]} d5 {[%emt 0:00:06]} 3. e3 {[%emt 0:00:01]} c5 {[%emt 0:00:02]} 4. c3 {[%emt 0:00:04]} Nc6 {[%emt 0:00:01]} 5. Nd2 {[%emt 0:00:01]} e6 {[%emt 0:00:04]} 6. Ngf3 {[%emt 0:00:05]} Bd6 {[%emt 0:00:02] 6...cxd4 is more fashionable.} 7. Bg3 {[%emt 0:00:03]} O-O {[%emt 0:00:02]} 8. Bd3 {[%emt 0:00:01]} h6 {[%emt 0:00:28] D02: 1 d4 d5 2 Nf3 sidelines, including 2...Nf6 3 g3 and 2...Nf6 3 Bf4.} 9. Ne5 {[%emt 0:00:13]} Bxe5 {[%emt 0:00:16]} 10. dxe5 {[%emt 0:00:01]} Nd7 {[%emt 0:00:02] White is slightly better.} 11. f4 {[%emt 0:01:26]} (11. Qh5 $11) 11... Qb6 {[%emt 0:00:23] [#]} (11... c4 $17 12. Be2 Qb6) 12. Qb1 $146 {[%emt 0:00:53]} (12. b3 $11 {remains equal.}) ({Predecessor:} 12. Qb3 c4 13. Qxb6 axb6 14. Bc2 b5 15. e4 b4 16. exd5 exd5 17. O-O b5 18. Nf3 bxc3 19. bxc3 {1-0 Dowgird,F (2348)-Baradaran,A (1990) Titled Tuesday intern op 13th July blitz 2021 (3)}) 12... c4 $17 {[%emt 0:00:11]} 13. Bh7+ {[%emt 0:00:02]} Kh8 {[%emt 0:00:01] Threatens to win with ...f5.} 14. Bf2 {[%emt 0:00:01]} Qd8 $2 {[%emt 0:00:35]} (14... f5 $17 15. e4 Qc7 16. Bxf5 exf5 17. exd5 Ncxe5 18. fxe5 Qxe5+ 19. Kf1 Qxd5) 15. Bc2 {[%emt 0:00:21]} b5 {[%emt 0:00:01]} 16. a3 {[%emt 0:00:07]} a5 {[%emt 0:00:03][%cal Ba7a5,Ba5b4,Bb4b3][%mdl 32]} 17. O-O {[%emt 0:00:04]} Bb7 {[%emt 0:00:14]} 18. Nf3 {[%emt 0:00:03]} (18. e4 $14) 18... b4 $11 {[%emt 0:00:05]} 19. axb4 {[%emt 0:00:03]} axb4 {[%emt 0:00:02]} 20. Rxa8 {[%emt 0:00:02]} Qxa8 {[%emt 0:00:02]} 21. Nd4 {[%emt 0:00:03]} (21. Qe1 $11) 21... b3 $15 {[%emt 0:00:24]} 22. Bd1 {[%emt 0:00:03]} Nc5 {[%emt 0:00:06]} 23. Bf3 {[%emt 0:00:27]} Qa2 {[%emt 0:00:20]} 24. Nb5 {[%emt 0:02:15]} Ra8 {[%emt 0:03:37]} ({Black should play} 24... Nd3 $1 $17 25. Be2 Kg8) 25. Nd6 $11 {[%emt 0:00:59]} Nd8 {[%emt 0:00:52]} 26. Bh4 {[%emt 0:00:18]} Kg8 {[%emt 0:01:01]} (26... Qxb1 {simplifies} 27. Rxb1 Kg8 28. Kf2 Bc6) 27. Bh5 $1 {[%emt 0:00:31]} Qxb1 {[%emt 0:00:07]} 28. Rxb1 {[%emt 0:00:01] Strongly threatening Bxd8.} g6 $132 {[%emt 0:00:02][%mdl 2048] Black puts up resistance. Black is weak on the dark squares} 29. Be2 {[%emt 0:00:13][%cal Oe3e4]} Bc6 {[%emt 0:00:10]} 30. e4 {[%emt 0:01:07] [#]} Ndb7 $1 $17 {[%emt 0:00:14]} 31. exd5 {[%emt 0:00:22]} exd5 {[%emt 0:00:05]} 32. Nxb7 {[%emt 0:00:19]} Bxb7 {[%emt 0:00:04]} 33. Bf2 {[%emt 0:00:08]} Ne4 {[%emt 0:00:18]} (33... Na4 $5 {[%cal Ra4b2]} 34. Kf1 d4 35. Bxc4 (35. cxd4 $2 Be4 $19) 35... dxc3 36. bxc3 (36. Bxb3 $2 Be4 $19 {[%mdl 64] Deflection}) 36... b2 $15) 34. Be3 $2 {[%emt 0:00:01]} (34. Bf3 $1 $15) 34... Bc8 $2 {[%emt 0:00:31]} (34... Ra2 $19 35. Bd1 d4 36. cxd4 c3 37. Bxb3 Rxb2 38. Rxb2 (38. Bc2 $2 Rxc2 39. Re1 f5 $19) 38... cxb2) 35. g4 $1 $15 {[%emt 0:00:55] [#]} h5 $1 {[%emt 0:00:19]} 36. h3 {[%emt 0:00:01]} (36. gxh5 $2 Nxc3 37. Re1 (37. bxc3 $2 Bf5 $19) 37... Nxe2+ 38. Rxe2 c3 $19) 36... Be6 {[%emt 0:01:12]} 37. Bf3 $1 {[%emt 0:00:19]} Kg7 {[%emt 0:00:17]} ({Black should try} 37... hxg4 $15 38. hxg4 Ra2) 38. Kg2 $11 {[%emt 0:00:46]} Ra2 {[%emt 0:00:12]} 39. Bxe4 {[%emt 0:00:41]} hxg4 {[%emt 0:00:38] [#]} 40. hxg4 {[%emt 0:00:17]} dxe4 {[%emt 0:00:01][%mdl 4096] Endgame KRB-KRB} 41. Kg3 {[%emt 0:00:10]} f6 {[%emt 0:01:07]} 42. Bd4 {[%emt 0:00:38]} f5 {[%emt 0:00:41]} 43. g5 {[%emt 0:01:01]} e3 {[%emt 0:00:08]} 44. Bxe3 $14 {[%emt 0:01:20]} Kf7 {[%emt 0:00:08]} 45. Bc5 {[%emt 0:00:19] Ba3 would be deadly.} Bd5 $2 {[%emt 0:00:06][%mdl 8192]} (45... Ra5 $1 $14) 46. Rd1 $18 {[%emt 0:00:08]} Be4 {[%emt 0:00:07]} 47. Rd7+ {[%emt 0:00:24]} Ke8 {[%emt 0:00:04]} 48. e6 {[%emt 0:00:05]} ({Not} 48. Re7+ Kd8 49. e6 Bc6 $14) (48. Rg7 $142 {And now e6 would win.} Ra6 49. Bd6) 48... Rxb2 $2 {[%emt 0:01:25]} (48... Ra6 $18) 49. Rh7 {[%emt 0:00:35][%cal Rh7h8] White mates.} ({Weaker is} 49. Re7+ Kd8 50. Rd7+ Kc8 $16) 49... Kd8 {[%emt 0:00:03] [#]} 50. e7+ $1 {[%emt 0:00:06]} Kd7 {[%emt 0:00:01]} 51. Rh8 {[%emt 0:00:03] Weighted Error Value: White=0.24 (precise) /Black=0.49} 1-0

[Event "Rapid Shavuot-A 2023"]
[Site "Ramat Gan"]
[Date "2023.05.25"]
[Round "6.14"]
[White "Kereth, Oren"]
[Black "Sherman, Reem"]
[Result "0-1"]
[ECO "C07"]
[WhiteElo "2080"]
[BlackElo "2306"]
[Annotator "TA"]
[PlyCount "78"]
[EventDate "2023.05.19"]
[EventType "swiss"]
[EventCountry "ISR"]
[SourceTitle "playchess.com"]
[Source "ChessBase"]
[SourceQuality "1"]
[TimeControl "900+5"]

{[%evp 23,78,35,28,5,24,24,24,32,34,0,0,0,9,-10,0,0,13,-20,27,17,21,24,42,41,50,41,41,26,26,19,15,12,17,14,26,0,0,0,0,0,0,0,0,-12,-15,-21,-4,-139,-137,-121,-134,-368,-368,-361,-360,-353,-338]} 1. e4 {[%emt 0:00:04]} e6 {[%emt 0:00:01]} 2. d4 {[%emt 0:00:05]} d5 {[%emt 0:00:02]} 3. Nd2 {[%emt 0:00:05]} c5 {[%emt 0:00:04]} 4. exd5 {[%emt 0:00:04]} Qxd5 {[%emt 0:00:04]} 5. Ngf3 {[%emt 0:00:08]} cxd4 {[%emt 0:00:02]} 6. Bc4 {[%emt 0:00:09]} Qd6 {[%emt 0:00:07]} 7. O-O {[%emt 0:00:07]} Nf6 {[%emt 0:00:04]} 8. Nb3 {[%emt 0:00:05]} Nc6 {[%emt 0:00:03]} 9. Nbxd4 {[%emt 0:00:04]} Nxd4 {[%emt 0:00:02]} 10. Nxd4 {[%emt 0:00:09]} a6 {[%emt 0:00:02]} 11. c3 {[%emt 0:00:19]} Be7 {[%emt 0:00:05]} 12. Re1 {[%emt 0:00:08]} O-O {[%emt 0:00:14]} 13. Bf1 {[%emt 0:00:34] [#] C07: French Tarrasch: 3...c5, 4 Ngf3 and 4 exd5 Qxd5.} b6 $146 {[%emt 0:00:56]} ({Predecessor:} 13... Qc7 14. Qf3 Bd6 15. g3 e5 16. Nb3 Bg4 17. Qd3 h6 18. Nd2 Rad8 19. Ne4 Nxe4 20. Qxe4 {½-½ Grandadam,P (2325)-Gagare,S (2486) Wch U20 55th 2016 (10)}) 14. Qf3 {[%emt 0:00:49]} Qd5 {[%emt 0:00:03]} 15. Qxd5 {[%emt 0:00:41] White has an edge.} (15. Nc6 {keeps more tension.} Bc5 16. Qxd5 Nxd5 17. c4) 15... Nxd5 {[%emt 0:00:02]} 16. g3 {[%emt 0:00:19]} Bb7 {[%emt 0:00:05]} 17. Bg2 {[%emt 0:00:06] [#] c4 would be deadly.} Rac8 {[%emt 0:01:26]} 18. a4 {[%emt 0:02:18]} Bf6 {[%emt 0:00:27]} 19. Nc2 {[%emt 0:01:24]} Ba8 {[%emt 0:00:24][%cal Od5c3]} 20. Ne3 {[%emt 0:00:21]} Nxe3 {[%emt 0:00:53]} (20... Nxc3 $142 21. bxc3 Bxg2 22. Nxg2 (22. Kxg2 Bxc3 23. Ba3 Rfd8 $17) 22... Bxc3) 21. Bxe3 $11 {[%emt 0:00:06]} Bxg2 {[%emt 0:00:03]} 22. Kxg2 {[%emt 0:00:06]} b5 {[%emt 0:00:28]} 23. axb5 {[%emt 0:00:46]} axb5 {[%emt 0:00:03]} 24. Ra7 {[%emt 0:00:12]} h5 {[%emt 0:00:28]} 25. Rd1 {[%emt 0:00:26]} Rfd8 {[%emt 0:00:49]} 26. Rda1 {[%emt 0:02:25]} Rb8 {[%emt 0:00:19]} 27. Bf4 {[%emt 0:00:25]} e5 {[%emt 0:00:42]} 28. Be3 {[%emt 0:00:13]} b4 {[%emt 0:00:04]} 29. c4 {[%emt 0:01:22][%cal Bc3c4,Bc4c5][%mdl 32]} e4 {[%emt 0:00:05]} 30. Rb1 {[%emt 0:00:11]} b3 {[%emt 0:00:16]} 31. c5 {[%emt 0:00:12]} Rb4 {[%emt 0:00:25]} 32. c6 {[%emt 0:00:25]} Rc8 {[%emt 0:00:29]} 33. Ra6 {[%emt 0:02:14]} Be5 {[%emt 0:00:46]} 34. Bd2 {[%emt 0:00:45]} Rb5 {[%emt 0:01:38]} 35. Ra4 {[%emt 0:00:06]} (35. Bc3 $11) 35... Rxc6 $17 {[%emt 0:00:26] Threatens to win with ...Rc2.} 36. Rxe4 {[%emt 0:00:03]} Rc2 {[%emt 0:00:03][%csl LRb2,LRd2] Inhibits Rc1. Black is more active.} 37. Bc3 {[%emt 0:00:07]} (37. Bc1 $17) 37... Bxc3 $19 {[%emt 0:00:27] Black is winning.} 38. bxc3 {[%emt 0:00:02]} b2 {[%emt 0:00:35][%cal Oc2c1] [#] ...Rc1! is the strong threat.} ({Inferior is} 38... Rxc3 39. Rb2 $17) 39. Rb4 {[%emt 0:00:09]} Rf5 {[%emt 0:05:08] Weighted Error Value: White=0.26 (precise) /Black=0.05 (flawless)} 0-1